[Event "Austria Championship Blitz 2024"]
[Site "Innsbruck"]
[Date "2024.06.01"]
[Round "2.22"]
[White "Wimmer, Michael"]
[Black "Falkensteiner, Benjamin"]
[Result "1-0"]
[ECO "B11"]
[WhiteElo "2142"]
[BlackElo "1905"]
[Annotator "RC"]
[PlyCount "161"]
[EventDate "2024.06.01"]
[EventType "swiss"]
[EventCountry "AUT"]
[SourceTitle "playchess.com"]
[Source "ChessBase"]
[SourceQuality "1"]
[TimeControl "180+2"]

1. e4 {[%emt 0:00:02]} c6 {[%emt 0:00:01]} 2. Nc3 {[%emt 0:00:02]} d5 {[%emt 0:00:01]} 3. Qe2 {[%emt 0:00:02]} d4 {[%emt 0:00:36]} 4. Nd1 {[%emt 0:00:03]} e5 {[%emt 0:00:06]} 5. g3 {[%emt 0:00:03]} Nf6 {[%emt 0:00:05]} 6. Bg2 {[%emt 0:00:05]} b6 {[%emt 0:00:06]} 7. d3 {[%emt 0:00:03]} Be7 {[%emt 0:00:08]} 8. f4 {[%emt 0:00:04]} Nbd7 {[%emt 0:00:14]} 9. Nf3 {[%emt 0:00:04]} O-O {[%emt 0:00:37]} 10. O-O {[%emt 0:00:06]} c5 {[%emt 0:00:07]} 11. f5 {[%emt 0:00:06]} Re8 {[%emt 0:00:12]} 12. Nf2 {[%emt 0:00:04]} Nf8 {[%emt 0:00:01]} 13. g4 {[%emt 0:00:04]} h6 {[%emt 0:00:08]} 14. Nxe5 {[%emt 0:00:14]} Qc7 {[%emt 0:00:33]} 15. Nf3 {[%emt 0:00:08]} Bd6 {[%emt 0:00:07]} 16. g5 {[%emt 0:00:28]} hxg5 {[%emt 0:00:09]} 17. Bxg5 {[%emt 0:00:09]} N6h7 {[%emt 0:00:00]} 18. Bh4 {[%emt 0:00:06]} Bb7 {[%emt 0:00:02]} 19. Ng4 {[%emt 0:00:06]} Nd7 {[%emt 0:00:01]} 20. Qd2 {[%emt 0:00:10]} Ne5 {[%emt 0:00:02]} 21. Nfxe5 {[%emt 0:00:21]} Bxe5 {[%emt 0:00:01]} 22. Nxe5 {[%emt 0:00:09]} Qxe5 {[%emt 0:00:03]} 23. Bg3 {[%emt 0:00:03]} Qe7 {[%emt 0:00:04]} 24. Qf4 {[%emt 0:00:05]} Nf6 {[%emt 0:00:03]} 25. Bh4 {[%emt 0:00:07]} Qe5 {[%emt 0:00:03]} 26. Qxe5 {[%emt 0:00:15]} Rxe5 {[%emt 0:00:01]} 27. Bg3 {[%emt 0:00:03]} Ree8 {[%emt 0:00:02]} 28. h3 {[%emt 0:00:09]} Nd7 {[%emt 0:00:02]} 29. Kf2 {[%emt 0:00:09]} Ne5 {[%emt 0:00:06]} 30. Bxe5 {[%emt 0:00:03]} Rxe5 {[%emt 0:00:01]} 31. Bf3 {[%emt 0:00:03]} f6 {[%emt 0:00:04]} 32. Rg1 {[%emt 0:00:05]} Bc6 {[%emt 0:00:04]} 33. Rg3 {[%emt 0:00:04]} Rf8 {[%emt 0:00:04]} 34. Rag1 {[%emt 0:00:04]} Rf7 {[%emt 0:00:01]} 35. Bh5 {[%emt 0:00:06]} Rfe7 {[%emt 0:00:01]} 36. Rg6 {[%emt 0:00:04]} Kf8 {[%emt 0:00:03]} 37. Bf3 {[%emt 0:00:05]} b5 {[%emt 0:00:02]} 38. b3 {[%emt 0:00:02]} a5 {[%emt 0:00:01]} 39. R6g4 {[%emt 0:00:03]} Bb7 {[%emt 0:00:03]} 40. Rh4 {[%emt 0:00:02]} Kg8 {[%emt 0:00:02]} 41. Bh5 {[%emt 0:00:06]} Ba6 {[%emt 0:00:03]} 42. Rgg4 {[%emt 0:00:03]} c4 {[%emt 0:00:01]} 43. Bg6 {[%emt 0:00:03]} cxd3 {[%emt 0:00:07]} 44. cxd3 {[%emt 0:00:01]} a4 {[%emt 0:00:02]} 45. Rh5 {[%emt 0:00:01]} Rc7 {[%emt 0:00:05]} 46. Rgh4 {[%emt 0:00:03]} Kf8 {[%emt 0:00:00]} 47. Rh8+ {[%emt 0:00:02]} Ke7 {[%emt 0:00:01]} 48. R4h7 {[%emt 0:00:02]} Kd6 {[%emt 0:00:02]} 49. Rd8+ {[%emt 0:00:02]} Kc6 {[%emt 0:00:03]} 50. Rg8 {[%emt 0:00:04]} Ree7 {[%emt 0:00:01]} 51. Ke2 {[%emt 0:00:01]} axb3 {[%emt 0:00:01]} 52. axb3 {[%emt 0:00:01]} b4 {[%emt 0:00:01]} 53. Ra8 {[%emt 0:00:03]} Bb7 {[%emt 0:00:02]} 54. Ra4 {[%emt 0:00:01]} Kb5 {[%emt 0:00:01]} 55. Rh8 {[%emt 0:00:04]} Bc6 {[%emt 0:00:02]} 56. Rb8+ {[%emt 0:00:02]} Kc5 {[%emt 0:00:01]} 57. Rbxb4 {[%emt 0:00:02]} Bxa4 {[%emt 0:00:02]} 58. Rc4+ {[%emt 0:00:02]} Kd6 {[%emt 0:00:00]} 59. Rxd4+ {[%emt 0:00:01]} Kc6 {[%emt 0:00:02]} 60. Rxa4 {[%emt 0:00:02]} Rb7 {[%emt 0:00:01]} 61. Rc4+ {[%emt 0:00:02]} Kd7 {[%emt 0:00:01]} 62. b4 {[%emt 0:00:01]} Rb6 {[%emt 0:00:02]} 63. Bh7 {[%emt 0:00:03]} Kd6 {[%emt 0:00:01]} 64. Bg8 {[%emt 0:00:02]} Reb7 {[%emt 0:00:01]} 65. Bd5 {[%emt 0:00:03]} Rb8 {[%emt 0:00:01]} 66. Ke3 {[%emt 0:00:03]} Rxb4 {[%emt 0:00:01]} 67. Rc6+ {[%emt 0:00:01]} Kd7 {[%emt 0:00:02]} 68. Ra6 {[%emt 0:00:01]} Rb3 {[%emt 0:00:02]} 69. Bxb3 {[%emt 0:00:01]} Rxb3 {[%emt 0:00:01]} 70. Ra7+ {[%emt 0:00:01]} Kd6 {[%emt 0:00:01]} 71. Rxg7 {[%emt 0:00:01]} Ke5 {[%emt 0:00:02]} 72. h4 {[%emt 0:00:03]} Rb8 {[%emt 0:00:01]} 73. Rg3 {[%emt 0:00:02]} Rh8 {[%emt 0:00:01]} 74. Rh3 {[%emt 0:00:01]} Kd6 {[%emt 0:00:01]} 75. h5 {[%emt 0:00:01]} Ke7 {[%emt 0:00:00]} 76. h6 {[%emt 0:00:01]} Kf7 {[%emt 0:00:01]} 77. h7 {[%emt 0:00:01]} Kg7 {[%emt 0:00:01]} 78. Kd4 {[%emt 0:00:01]} Rxh7 {[%emt 0:00:02]} 79. Rxh7+ {[%emt 0:00:02]} Kxh7 {[%emt 0:00:00]} 80. Kd5 {[%emt 0:00:14]} Kg7 81. Ke6 {[%emt 0:00:00]} 1-0

[Event "Austria Championship Blitz 2024"]
[Site "Innsbruck"]
[Date "2024.06.01"]
[Round "2.23"]
[White "Stadlinger, Lea"]
[Black "Kosc, Renata"]
[Result "0-1"]
[ECO "A85"]
[WhiteElo "1912"]
[BlackElo "1983"]
[Annotator "RC"]
[PlyCount "64"]
[EventDate "2024.06.01"]
[EventType "swiss"]
[EventCountry "AUT"]
[SourceTitle "playchess.com"]
[Source "ChessBase"]
[SourceQuality "1"]
[TimeControl "180+2"]

1. d4 {[%emt 0:00:02]} f5 {[%emt 0:00:00]} 2. c4 {[%emt 0:00:03]} Nf6 {[%emt 0:00:02]} 3. Nc3 {[%emt 0:00:02]} g6 {[%emt 0:00:01]} 4. Bf4 {[%emt 0:00:08]} Bg7 {[%emt 0:00:02]} 5. e3 {[%emt 0:00:01]} d6 {[%emt 0:00:06]} 6. h3 {[%emt 0:00:03]} Nc6 {[%emt 0:00:10]} 7. Bd3 {[%emt 0:00:02]} e5 {[%emt 0:00:05]} 8. dxe5 {[%emt 0:00:05]} dxe5 {[%emt 0:00:16]} 9. Bh2 {[%emt 0:00:02]} O-O {[%emt 0:00:15]} 10. Nge2 {[%emt 0:00:03]} Be6 {[%emt 0:00:09]} 11. b3 {[%emt 0:00:07]} Qe7 {[%emt 0:00:15]} 12. O-O {[%emt 0:00:11]} Rad8 {[%emt 0:00:02]} 13. Qb1 {[%emt 0:00:11]} Nb4 {[%emt 0:00:10]} 14. Bc2 {[%emt 0:00:10]} Nxc2 {[%emt 0:00:03]} 15. Qxc2 {[%emt 0:00:02]} Bf7 {[%emt 0:00:21]} 16. Rad1 {[%emt 0:00:02]} c6 {[%emt 0:00:01]} 17. e4 {[%emt 0:00:34]} f4 {[%emt 0:00:01]} 18. g3 {[%emt 0:00:07]} f3 {[%emt 0:00:16]} 19. Nc1 {[%emt 0:00:01]} Nd7 {[%emt 0:00:13]} 20. Rd3 {[%emt 0:00:21]} Be6 {[%emt 0:00:04]} 21. g4 {[%emt 0:00:01]} Nc5 {[%emt 0:00:04]} 22. Rd2 {[%emt 0:00:02]} Rxd2 {[%emt 0:00:08]} 23. Qxd2 {[%emt 0:00:01]} a5 {[%emt 0:00:10]} 24. Qe3 {[%emt 0:00:08]} b6 {[%emt 0:00:09]} 25. Rd1 {[%emt 0:00:04]} Bf6 {[%emt 0:00:12]} 26. Qxf3 {[%emt 0:00:07]} Bh4 {[%emt 0:00:01]} 27. Qe3 {[%emt 0:00:20]} Bxf2+ {[%emt 0:00:02]} 28. Qxf2 {[%emt 0:00:01]} Rxf2 {[%emt 0:00:01]} 29. Kxf2 {[%emt 0:00:02]} Qf6+ {[%emt 0:00:02]} 30. Ke2 {[%emt 0:00:06]} Qg5 {[%emt 0:00:11]} 31. Nd3 {[%emt 0:00:02]} Kf7 {[%emt 0:00:02]} 32. Rf1+ {[%emt 0:00:02]} Ke7 {[%emt 0:00:02]} 0-1

[Event "Austria Championship Blitz 2024"]
[Site "Innsbruck"]
[Date "2024.06.01"]
[Round "2.24"]
[White "Hyassat, Milana"]
[Black "Schwarz, Benedikt"]
[Result "0-1"]
[ECO "A85"]
[WhiteElo "1761"]
[BlackElo "1919"]
[Annotator "RC"]
[PlyCount "92"]
[EventDate "2024.06.01"]
[EventType "swiss"]
[EventCountry "AUT"]
[SourceTitle "playchess.com"]
[Source "ChessBase"]
[SourceQuality "1"]
[TimeControl "180+2"]

1. d4 {[%emt 0:00:01]} f5 {[%emt 0:00:02]} 2. c4 {[%emt 0:00:01]} Nf6 {[%emt 0:00:01]} 3. Bg5 {[%emt 0:00:01]} e6 {[%emt 0:00:05]} 4. e3 {[%emt 0:00:05]} Be7 {[%emt 0:00:02]} 5. Nc3 {[%emt 0:00:01]} c6 {[%emt 0:00:01]} 6. Nf3 {[%emt 0:00:03]} d5 {[%emt 0:00:01]} 7. Be2 {[%emt 0:00:04]} O-O {[%emt 0:00:04]} 8. h4 {[%emt 0:00:02]} Ne4 {[%emt 0:00:02]} 9. Bxe7 {[%emt 0:00:01]} Qxe7 {[%emt 0:00:04]} 10. Qc2 {[%emt 0:00:44]} Nd7 {[%emt 0:00:03]} 11. h5 {[%emt 0:00:19]} Ndf6 {[%emt 0:00:02]} 12. Nxe4 {[%emt 0:00:13]} fxe4 {[%emt 0:00:14]} 13. Ne5 {[%emt 0:00:07]} Nd7 {[%emt 0:00:28]} 14. Ng4 {[%emt 0:00:22]} e5 {[%emt 0:00:15]} 15. h6 {[%emt 0:00:16]} g6 {[%emt 0:00:06]} 16. O-O-O {[%emt 0:00:05]} exd4 {[%emt 0:00:07]} 17. Rxd4 {[%emt 0:00:18]} Nb6 {[%emt 0:00:16]} 18. c5 {[%emt 0:00:38]} Bxg4 {[%emt 0:00:06]} 19. Bxg4 {[%emt 0:00:02]} Nc4 {[%emt 0:00:04]} 20. b3 {[%emt 0:00:06]} Ne5 {[%emt 0:00:02]} 21. Be2 {[%emt 0:00:03]} Rxf2 {[%emt 0:00:06]} 22. Qd1 {[%emt 0:00:04]} Qxc5+ {[%emt 0:00:10]} 23. Kb1 {[%emt 0:00:04]} Raf8 {[%emt 0:00:14]} 24. b4 {[%emt 0:00:06]} Qe7 {[%emt 0:00:05]} 25. Bg4 {[%emt 0:00:03]} Nxg4 {[%emt 0:00:05]} 26. Qxg4 {[%emt 0:00:01]} Rf1+ {[%emt 0:00:05]} 27. Rxf1 {[%emt 0:00:01]} Rxf1+ {[%emt 0:01:06]} 28. Qd1 {[%emt 0:00:03]} Rxd1+ {[%emt 0:00:00]} 29. Rxd1 {[%emt 0:00:01]} Qg5 {[%emt 0:00:00]} 30. Re1 {[%emt 0:00:03]} Qxh6 {[%emt 0:00:00]} 31. Kc2 {[%emt 0:00:01]} Qg5 {[%emt 0:00:00]} 32. Re2 {[%emt 0:00:01]} h5 {[%emt 0:00:00]} 33. Kd2 {[%emt 0:00:02]} b6 {[%emt 0:00:00]} 34. Rf2 {[%emt 0:00:01]} c5 {[%emt 0:00:00]} 35. bxc5 {[%emt 0:00:02]} bxc5 {[%emt 0:00:00]} 36. Rf4 {[%emt 0:00:01]} Qxg2+ {[%emt 0:00:00]} 37. Kc3 {[%emt 0:00:01]} Qe2 {[%emt 0:00:00]} 38. Rf6 {[%emt 0:00:04]} Qxe3+ {[%emt 0:00:00]} 39. Kc2 {[%emt 0:00:02]} Qd3+ {[%emt 0:00:00]} 40. Kc1 {[%emt 0:00:09]} Kg7 {[%emt 0:00:00]} 41. Rf2 {[%emt 0:00:00]} e3 {[%emt 0:00:00]} 42. Rc2 {[%emt 0:00:00]} e2 {[%emt 0:00:00]} 43. Rxe2 {[%emt 0:00:03]} Qxe2 {[%emt 0:00:00]} 44. a4 {[%emt 0:00:01]} d4 {[%emt 0:00:00]} 45. a5 {[%emt 0:00:01]} d3 {[%emt 0:00:00]} 46. a6 {[%emt 0:00:02]} Qc2# {[%emt 0:00:00]} 0-1

[Event "Austria Championship Blitz 2024"]
[Site "Innsbruck"]
[Date "2024.06.01"]
[Round "3.1"]
[White "Blohberger, Felix"]
[Black "Casagrande, Harald"]
[Result "1-0"]
[ECO "A05"]
[WhiteElo "2506"]
[BlackElo "2290"]
[Annotator "TA"]
[PlyCount "73"]
[EventDate "2024.06.01"]
[EventType "swiss"]
[EventCountry "AUT"]
[SourceTitle "playchess.com"]
[Source "ChessBase"]
[SourceQuality "1"]
[TimeControl "180+2"]

{[%evp 12,73,22,6,22,16,16,1,0,-9,-5,-13,-4,-185,-165,-197,-3,-28,0,-20,0,-7,132,116,96,97,155,155,208,196,213,226,308,306,309,287,296,302,326,332,394,389,423,400,418,417,441,433,460,460,508,497,548,554,538,526,634,594,866,864,880,873,852,851]} 1. Nf3 {[%emt 0:00:02]} Nf6 {[%emt 0:00:01]} 2. g3 {[%emt 0:00:03]} b5 {[%emt 0:00:01]} 3. Bg2 {[%emt 0:00:02]} Bb7 {[%emt 0:00:01]} 4. O-O {[%emt 0:00:02]} e6 {[%emt 0:00:00]} 5. b3 {[%emt 0:00:00]} c5 {[%emt 0:00:02]} 6. c4 {[%emt 0:00:02]} b4 {[%emt 0:00:17]} 7. Bb2 {[%emt 0:00:02]} Be7 {[%emt 0:00:02]} 8. d4 {[%emt 0:00:08]} cxd4 {[%emt 0:00:02]} 9. Qxd4 {[%emt 0:00:05]} O-O {[%emt 0:00:04] The position is equal.} 10. Nbd2 {[%emt 0:00:01]} d6 {[%emt 0:00:10]} 11. Rfd1 {[%emt 0:00:04]} Nbd7 {[%emt 0:00:01]} 12. Ng5 $2 {[%emt 0:00:40]} (12. Ne1 $11 Bxg2 13. Kxg2) 12... Bxg2 $19 13. Kxg2 {[%emt 0:00:01] [#]} Qc7 $2 {[%emt 0:00:16]} (13... Ne8 $1 $19 14. Nge4 f5) 14. Nge4 {[%emt 0:00:35]} Rfd8 {[%emt 0:00:04]} 15. Nf3 {[%emt 0:00:05][%cal Re4d6]} Qc6 {[%emt 0:00:37]} 16. Nxf6+ {[%emt 0:00:09]} (16. Nxd6 $2 {too greedy.} Nc5 17. Qh4 Rxd6 $19) 16... Bxf6 {[%emt 0:00:05]} (16... Nxf6 $11 17. a3 bxa3 18. Rxa3 a6) 17. Qxd6 $16 {[%emt 0:00:21]} ({Weaker is} 17. Qd2 Bxb2 18. Qxb2 Nc5 $11) 17... Qxd6 {[%emt 0:00:29]} 18. Rxd6 {[%emt 0:00:01] Black must now prevent Bxf6.} Bxb2 {[%emt 0:00:02]} (18... Nc5 $142 19. Rxd8+ Rxd8) 19. Rad1 {[%emt 0:00:01]} g6 {[%emt 0:00:34]} (19... Kf8 $16 {was called for.}) 20. Rxd7 $18 {[%emt 0:00:03]} Rxd7 {[%emt 0:00:02]} 21. Rxd7 {[%emt 0:00:01][%mdl 4096] Endgame. KRB-KRN} a5 {[%emt 0:00:00]} 22. Ng5 {[%emt 0:00:05]} Rf8 {[%emt 0:00:32]} 23. Ra7 {[%emt 0:00:02]} h6 {[%emt 0:00:04]} 24. Ne4 {[%emt 0:00:01]} Rd8 {[%emt 0:00:03]} 25. Rxa5 {[%emt 0:00:05]} f5 {[%emt 0:00:01]} 26. Nc5 {[%emt 0:00:03]} Rd6 {[%emt 0:00:03]} 27. Ra6 {[%emt 0:00:11]} Rd2 {[%emt 0:00:19]} 28. Rxe6 {[%emt 0:00:09]} Kf7 {[%emt 0:00:01]} 29. e3 {[%emt 0:00:21] White is clearly winning.} Bc3 {[%emt 0:00:01]} 30. Ra6 {[%emt 0:00:06]} Rc2 {[%emt 0:00:01]} 31. Nd3 {[%emt 0:00:12]} Rd2 {[%emt 0:00:01]} 32. Nf4 {[%emt 0:00:04]} g5 {[%emt 0:00:01]} 33. Nd5 {[%emt 0:00:01]} h5 {[%emt 0:00:02]} 34. a3 {[%emt 0:00:06]} bxa3 {[%emt 0:00:02][%cal Bb4a3,Ba3a2][%mdl 32]} 35. Nxc3 {[%emt 0:00:02]} Rc2 {[%emt 0:00:04]} 36. Nd5 {[%emt 0:00:01]} a2 {[%emt 0:00:00]} 37. Nb4 {[%emt 0:00:01][%csl LRa2,LRc2] Quite a comeback for White.   Weighted Error Value: White=0.17 (very precise) /Black=0.38.  Loses game:     	White=1     	---        Missed win:     	---       	Black=1      Mistake:       	---       	Black=3      Inaccurate:     	---       	Black=3      OK:         	White=13    	Black=7      Best:        	White=2     	Black=1} 1-0

[Event "Austria Championship Blitz 2024"]
[Site "Innsbruck"]
[Date "2024.06.01"]
[Round "3.2"]
[White "Kranzl, Peter"]
[Black "Shengelia, David"]
[Result "0-1"]
[ECO "B22"]
[WhiteElo "2157"]
[BlackElo "2465"]
[Annotator "RC"]
[PlyCount "76"]
[EventDate "2024.06.01"]
[EventType "swiss"]
[EventCountry "AUT"]
[SourceTitle "playchess.com"]
[Source "ChessBase"]
[SourceQuality "1"]
[TimeControl "180+2"]

1. e4 {[%emt 0:00:02]} c5 {[%emt 0:00:02]} 2. c3 {[%emt 0:00:01]} Nf6 {[%emt 0:00:01]} 3. e5 {[%emt 0:00:01]} Nd5 {[%emt 0:00:01]} 4. d4 {[%emt 0:00:02]} cxd4 5. Qxd4 {[%emt 0:00:03]} e6 {[%emt 0:00:03]} 6. Nf3 {[%emt 0:00:01]} Nc6 {[%emt 0:00:03]} 7. Qe4 {[%emt 0:00:02]} f5 {[%emt 0:00:03]} 8. Qe2 {[%emt 0:00:03]} Be7 {[%emt 0:00:05]} 9. g3 {[%emt 0:00:03]} b6 {[%emt 0:00:04]} 10. Bg2 {[%emt 0:00:02]} Bb7 {[%emt 0:00:00]} 11. O-O {[%emt 0:00:04]} O-O {[%emt 0:00:05]} 12. c4 {[%emt 0:00:06]} Nc7 {[%emt 0:00:12]} 13. Rd1 {[%emt 0:00:05]} Qe8 {[%emt 0:00:38]} 14. Nc3 {[%emt 0:00:10]} h6 {[%emt 0:00:08]} 15. h4 {[%emt 0:00:06]} Rd8 {[%emt 0:00:06]} 16. Nd4 {[%emt 0:00:48]} Nxd4 {[%emt 0:00:07]} 17. Rxd4 {[%emt 0:00:01]} Bxg2 {[%emt 0:00:06]} 18. Kxg2 {[%emt 0:00:02]} Bc5 {[%emt 0:00:06]} 19. Rd1 {[%emt 0:00:12]} d6 {[%emt 0:00:13]} 20. exd6 {[%emt 0:00:05]} Bxd6 {[%emt 0:00:05]} 21. f4 {[%emt 0:00:19]} Qc6+ {[%emt 0:00:08]} 22. Kh2 {[%emt 0:00:03]} Bb4 {[%emt 0:00:22]} 23. Bd2 {[%emt 0:00:12]} Rd4 {[%emt 0:00:12]} 24. Nb5 {[%emt 0:00:33]} Rxd2 {[%emt 0:00:11]} 25. Rxd2 {[%emt 0:00:02]} Bxd2 {[%emt 0:00:01]} 26. Nxc7 {[%emt 0:00:11]} Qxc7 {[%emt 0:00:01]} 27. Qxd2 {[%emt 0:00:02]} Qxc4 {[%emt 0:00:01]} 28. Re1 {[%emt 0:00:04]} Qxa2 {[%emt 0:00:02]} 29. Re3 {[%emt 0:00:08]} Rc8 {[%emt 0:00:16]} 30. Ra3 {[%emt 0:00:03]} Qb1 {[%emt 0:00:07]} 31. Rc3 {[%emt 0:00:09]} Rxc3 {[%emt 0:00:01]} 32. Qxc3 {[%emt 0:00:01]} Kh7 {[%emt 0:00:03]} 33. Qe5 {[%emt 0:00:03]} Qc2+ {[%emt 0:00:06]} 34. Kg1 {[%emt 0:00:03]} Qc4 {[%emt 0:00:06]} 35. Kf2 {[%emt 0:00:03]} a5 {[%emt 0:00:03]} 36. Ke3 {[%emt 0:00:04]} a4 {[%emt 0:00:03]} 37. h5 {[%emt 0:00:06]} b5 {[%emt 0:00:03]} 38. Kd2 {[%emt 0:00:05]} b4 {[%emt 0:00:02]} 0-1

[Event "Austria Championship Blitz 2024"]
[Site "Innsbruck"]
[Date "2024.06.01"]
[Round "3.3"]
[White "Schnegg, Daniel"]
[Black "Schwabeneder, Florian"]
[Result "0-1"]
[ECO "A45"]
[WhiteElo "2115"]
[BlackElo "2405"]
[Annotator "RC"]
[PlyCount "46"]
[EventDate "2024.06.01"]
[EventType "swiss"]
[EventCountry "AUT"]
[SourceTitle "playchess.com"]
[Source "ChessBase"]
[SourceQuality "1"]
[TimeControl "180+2"]

1. f4 {[%emt 0:00:01]} g6 {[%emt 0:00:04]} 2. Nf3 {[%emt 0:00:02]} Nf6 {[%emt 0:00:02]} 3. e3 {[%emt 0:00:01]} Bg7 {[%emt 0:00:01]} 4. d4 {[%emt 0:00:04]} O-O {[%emt 0:00:07]} 5. Bd3 {[%emt 0:00:01]} c5 {[%emt 0:00:02]} 6. c3 {[%emt 0:00:01]} d6 {[%emt 0:00:08]} 7. O-O {[%emt 0:00:02]} Nc6 {[%emt 0:00:09]} 8. b3 {[%emt 0:00:10]} cxd4 {[%emt 0:00:07]} 9. exd4 {[%emt 0:00:15]} e5 {[%emt 0:00:01]} 10. Bb5 {[%emt 0:00:30]} exd4 {[%emt 0:00:21]} 11. cxd4 {[%emt 0:00:07]} Qb6 {[%emt 0:00:22]} 12. Bxc6 {[%emt 0:00:06]} Qxc6 {[%emt 0:00:14]} 13. Bb2 {[%emt 0:00:03]} Bg4 {[%emt 0:00:13]} 14. Nbd2 {[%emt 0:00:04]} Rfe8 {[%emt 0:00:10]} 15. h3 {[%emt 0:00:20]} Bf5 {[%emt 0:00:11]} 16. Rc1 {[%emt 0:00:04]} Qa6 {[%emt 0:00:13]} 17. a4 {[%emt 0:00:12]} Nd5 {[%emt 0:00:02]} 18. Nc4 {[%emt 0:00:04]} Nxf4 {[%emt 0:00:05]} 19. Kh1 {[%emt 0:00:24]} Ne2 {[%emt 0:00:04]} 20. Qd2 {[%emt 0:00:08]} Ng3+ {[%emt 0:00:14]} 21. Kh2 {[%emt 0:00:07]} Nxf1+ {[%emt 0:00:03]} 22. Rxf1 {[%emt 0:00:01]} d5 {[%emt 0:00:01]} 23. Nce5 {[%emt 0:00:04]} Qxf1 {[%emt 0:00:03]} 0-1

[Event "Austria Championship Blitz 2024"]
[Site "Innsbruck"]
[Date "2024.06.01"]
[Round "3.4"]
[White "Wohlfahrt, Herbert"]
[Black "Neuschmied, Siegfried"]
[Result "0-1"]
[ECO "A15"]
[WhiteElo "2328"]
[BlackElo "2234"]
[Annotator "RC"]
[PlyCount "102"]
[EventDate "2024.06.01"]
[EventType "swiss"]
[EventCountry "AUT"]
[SourceTitle "playchess.com"]
[Source "ChessBase"]
[SourceQuality "1"]
[TimeControl "180+2"]

1. Nf3 {[%emt 0:00:01]} Nf6 {[%emt 0:00:01]} 2. c4 {[%emt 0:00:00]} g6 {[%emt 0:00:03]} 3. b3 {[%emt 0:00:02]} Bg7 {[%emt 0:00:01]} 4. Bb2 {[%emt 0:00:00]} d6 {[%emt 0:00:02]} 5. g3 {[%emt 0:00:03]} e5 {[%emt 0:00:04]} 6. d3 {[%emt 0:00:02]} O-O {[%emt 0:00:03]} 7. Bg2 {[%emt 0:00:01]} c6 {[%emt 0:00:06]} 8. O-O {[%emt 0:00:02]} a5 {[%emt 0:00:02]} 9. Nc3 {[%emt 0:00:02]} Na6 {[%emt 0:00:06]} 10. Rc1 {[%emt 0:00:05]} Re8 {[%emt 0:00:02]} 11. Nd2 {[%emt 0:00:10]} Be6 {[%emt 0:00:20]} 12. a3 {[%emt 0:00:11]} Qc7 {[%emt 0:00:12]} 13. Nf3 {[%emt 0:00:36]} Rad8 {[%emt 0:00:02]} 14. Qd2 {[%emt 0:00:10]} Nc5 {[%emt 0:00:06]} 15. Qc2 {[%emt 0:00:03]} Na6 {[%emt 0:00:06]} 16. Qb1 {[%emt 0:00:08]} Qc8 {[%emt 0:00:02]} 17. Rfe1 {[%emt 0:00:06]} Bh3 {[%emt 0:00:04]} 18. Bh1 {[%emt 0:00:00]} Bh6 {[%emt 0:00:09]} 19. Rcd1 {[%emt 0:00:05]} Ng4 {[%emt 0:00:07]} 20. Bc1 {[%emt 0:00:09]} Bg7 {[%emt 0:00:30]} 21. Ng5 {[%emt 0:00:08]} Nf6 {[%emt 0:00:01]} 22. Nxh3 {[%emt 0:00:03]} Qxh3 {[%emt 0:00:01]} 23. Bg2 {[%emt 0:00:02]} Qc8 {[%emt 0:00:12]} 24. b4 {[%emt 0:00:02]} axb4 25. axb4 {[%emt 0:00:00]} d5 {[%emt 0:00:07]} 26. b5 {[%emt 0:00:31]} Nc5 {[%emt 0:00:02]} 27. Ba3 {[%emt 0:00:02]} Ne6 {[%emt 0:00:01]} 28. cxd5 {[%emt 0:00:06]} cxd5 {[%emt 0:00:01]} 29. Rc1 {[%emt 0:00:01]} Qd7 {[%emt 0:00:04]} 30. b6 {[%emt 0:00:13]} Ra8 {[%emt 0:00:05]} 31. Nb5 {[%emt 0:00:08]} Ra5 {[%emt 0:00:04]} 32. Nc7 {[%emt 0:00:23]} Rxa3 {[%emt 0:00:01]} 33. Nxe8 Nxe8 {[%emt 0:00:01]} 34. Qb4 {[%emt 0:00:03]} Ra8 {[%emt 0:00:07]} 35. e3 {[%emt 0:00:04]} Nf6 {[%emt 0:00:06]} 36. Qb2 {[%emt 0:00:03]} Qd6 {[%emt 0:00:04]} 37. Ra1 {[%emt 0:00:05]} Rd8 {[%emt 0:00:02]} 38. Ra7 {[%emt 0:00:02]} Rb8 {[%emt 0:00:15]} 39. Rea1 {[%emt 0:00:02]} Nd7 {[%emt 0:00:03]} 40. Rb1 {[%emt 0:00:04]} e4 {[%emt 0:00:02]} 41. Qb5 {[%emt 0:00:07]} Nec5 {[%emt 0:00:09]} 42. dxe4 {[%emt 0:00:03]} Nxe4 {[%emt 0:00:04]} 43. Rc1 {[%emt 0:00:04]} Nc3 {[%emt 0:00:01]} 44. Qd3 {[%emt 0:00:01]} Qe5 {[%emt 0:00:09]} 45. h3 {[%emt 0:00:06]} Nxb6 {[%emt 0:00:42]} 46. Kh2 {[%emt 0:00:05]} Nc4 {[%emt 0:00:00]} 47. Rca1 {[%emt 0:00:06]} Nb6 {[%emt 0:00:04]} 48. Rc1 {[%emt 0:00:02]} Nba4 {[%emt 0:00:00]} 49. Ra5 {[%emt 0:00:02]} Rd8 {[%emt 0:00:00]} 50. Ra7 {[%emt 0:00:02]} b6 {[%emt 0:00:00]} 51. Rb7 {[%emt 0:00:01]} Nc5 {[%emt 0:00:00]} 0-1